{"text_format":"3","workbook":"xlsx","n_sheets":14,"sheets":["tipy","súhrn","jan","feb","mar","apr","máj","jún","júl","aug","sep","okt","nov","dec"],"not_rendered":{"charts":1,"defined_names":27},"read":"whole","date_system":"1900"}

{"sheet":"tipy","index":0,"n_rows":18,"n_cols":1,"rows_kept":18}
["TIPY K ŠABLÓNE"]
["Existuje jednoduchý spôsob, ako prechádzať medzi hárkom súhrnu Trendy výdavkov a podrobnosťami mesačných výdavkov?"]
["Ak chcete rýchlo prejsť na výdavky konkrétneho mesiaca, kliknite na príslušné navigačné prepojenie nad grafom, ako je napríklad navigačné prepojenie Jan v bunke B2. Ak sa chcete vrátiť na hárok Trendy výdavkov, kliknite na navigačné prepojenie Súhrn v bunke D1. "]
["Ak sa chcete vrátiť na hárok s tipmi, na hárku súhrnu vyberte bunku N2. Na všetkých hárkoch mesiacov vyberte bunku E1."]
["Ako pridám nový typ výdavku do súhrnu výdavkov alebo nových mesačných výdavkov?"]
["Súhrn výdavkov pod grafom a podrobnosti výdavkov pre jednotlivé mesiace sú excelovými tabuľkami. Ak chcete pridať nové riadky do ľubovoľnej excelovej tabuľky, postupujte takto:"]
[{"$f":"ROW(A1)&\". Ak v tabuľke nie je riadok súčtu, začnite písať pod tabuľkou a ona sa automaticky rozšíri po stlačení klávesu Enter alebo Tab.\"","v":"1. Ak v tabuľke nie je riadok súčtu, začnite písať pod tabuľkou a ona sa automaticky rozšíri po stlačení klávesu Enter alebo Tab."}]
[{"$f":"ROW(A2)&\". Umiestnite ukazovateľ bunky do poslednej bunky nad riadkom súčtu, ako napríklad do bunky s celkovou sumou posledného výdavku, a následne stlačte kláves Tab.\"","v":"2. Umiestnite ukazovateľ bunky do poslednej bunky nad riadkom súčtu, ako napríklad do bunky s celkovou sumou posledného výdavku, a následne stlačte kláves Tab."}]
[{"$f":"ROW(A3)&\". Kliknite pravým tlačidlom myši v tabuľke a v kontextovej ponuke ukážte na položku Vložiť. Potom kliknite na položku Riadky tabuľky nad alebo Riadky tabuľky pod.\"","v":"3. Kliknite pravým tlačidlom myši v tabuľke a v kontextovej ponuke ukážte na položku Vložiť. Potom kliknite na položku Riadky tabuľky nad alebo Riadky tabuľky pod."}]
[{"$f":"ROW(A4)&\".  V pravom dolnom rohu tabuľky umiestnite ukazovateľ myši na rukoväť na zmenu veľkosti tabuľky. Posunutím rukoväte smerom dolu zvýšite počet riadkov tabuľky, ktoré sú k dispozícii.\"","v":"4.  V pravom dolnom rohu tabuľky umiestnite ukazovateľ myši na rukoväť na zmenu veľkosti tabuľky. Posunutím rukoväte smerom dolu zvýšite počet riadkov tabuľky, ktoré sú k dispozícii."}]
["Výdavok zadajte do hárka Súhrn do tabuľky SúhrnVýdavkov do stĺpca Výdavky."]
["Pridajte sumu výdavku pre jednotlivé typy výdavkov do hárkov mesiacov, kedy sa výdavok uskutočnil."]
["Príklad: Výdavok 1 sa vyskytuje v mesiacoch január až jún a december. "]
[{"$f":"ROW(A1)&\". V tabuľke SúhrnVýdavkov sa náklad 1 zadá v hárku súhrnu do kategórie Výdavky (ako názov typu výdavkov).\"","v":"1. V tabuľke SúhrnVýdavkov sa náklad 1 zadá v hárku súhrnu do kategórie Výdavky (ako názov typu výdavkov)."}]
[{"$f":"ROW(A2)&\". Pre každý mesiac, kedy sa daný výdavok vyskytne, zadajte požadovanú výšku výdavku do hárka príslušného mesiaca.\"","v":"2. Pre každý mesiac, kedy sa daný výdavok vyskytne, zadajte požadovanú výšku výdavku do hárka príslušného mesiaca."}]
[{"$f":"ROW(A3)&\". Typ výdavku v pracovnom hárku SúhrnVýdavkov vytvorí zoznam kategórií pre stĺpec Kategória v pracovnom hárku každého mesiaca.\"","v":"3. Typ výdavku v pracovnom hárku SúhrnVýdavkov vytvorí zoznam kategórií pre stĺpec Kategória v pracovnom hárku každého mesiaca."}]
[{"$f":"ROW(A4)&\". Pomocou zoznamu kategórií v stĺpci Kategória vyberte príslušný typ výdavku pre veľkosť zadaného výdavku.\"","v":"4. Pomocou zoznamu kategórií v stĺpci Kategória vyberte príslušný typ výdavku pre veľkosť zadaného výdavku."}]
[{"$f":"ROW(A5)&\". Ak chcete pridať nové výdavky do ľubovoľného mesiaca, pridajte do súhrnného pracovného hárka v tabuľke SúhrnVýdavkov nový riadok a potom zadajte príslušné podrobnosti o výdavkoch v pracovnom hárku mesiaca, na ktorý sa vzťahujú.\"","v":"5. Ak chcete pridať nové výdavky do ľubovoľného mesiaca, pridajte do súhrnného pracovného hárka v tabuľke SúhrnVýdavkov nový riadok a potom zadajte príslušné podrobnosti o výdavkoch v pracovnom hárku mesiaca, na ktorý sa vzťahujú."}]

{"sheet":"súhrn","index":1,"n_rows":10,"n_cols":15,"rows_kept":10}
["TRENDY VÝDAVKOV"]
[null,"Jan","Feb","Mar","Apr","Máj","Jún","Júl","Aug","Sep","Okt","Nov","Dec","Tipy"]
[]
["Výdavky","Jan","Feb","Mar","Apr","Máj","Jún","Júl","Aug","Sep","Okt","Nov","Dec","Celková \nhodnota","Trend"]
["Výdavok 1",{"$f":"SUMIFS(VýdJan[Suma],VýdJan[Kategória],SúhrnVýdavkov[Výdavky])","v":{"v":33,"d":"33.00"}},{"$f":"SUMIFS(VýdFeb[Suma],VýdFeb[Kategória],SúhrnVýdavkov[Výdavky])","v":{"v":375,"d":"375.00"}},{"$f":"SUMIFS(VýdMar[Suma],VýdMar[Kategória],SúhrnVýdavkov[Výdavky])","v":{"v":33,"d":"33.00"}},{"$f":"SUMIFS(VýdApr[Suma],VýdApr[Kategória],SúhrnVýdavkov[Výdavky])","v":{"v":45,"d":"45.00"}},{"$f":"SUMIFS(VýdMáj[Suma],VýdMáj[Kategória],SúhrnVýdavkov[Výdavky])","v":{"v":375,"d":"375.00"}},{"$f":"SUMIFS(VýdJún[Suma],VýdJún[Kategória],SúhrnVýdavkov[Výdavky])","v":{"v":201,"d":"201.00"}},{"$f":"SUMIFS(VýdJúl[Suma],VýdJúl[Kategória],SúhrnVýdavkov[Výdavky])","v":{"v":0,"d":"0.00"}},{"$f":"SUMIFS(VýdAug[Suma],VýdAug[Kategória],SúhrnVýdavkov[Výdavky])","v":{"v":0,"d":"0.00"}},{"$f":"SUMIFS(VýdSep[Suma],VýdSep[Kategória],SúhrnVýdavkov[Výdavky])","v":{"v":0,"d":"0.00"}},{"$f":"SUMIFS(VýdOkt[Suma],VýdOkt[Kategória],SúhrnVýdavkov[Výdavky])","v":{"v":0,"d":"0.00"}},{"$f":"SUMIFS(VýdNov[Suma],VýdNov[Kategória],SúhrnVýdavkov[Výdavky])","v":{"v":0,"d":"0.00"}},{"$f":"SUMIFS(VýdDec[Suma],VýdDec[Kategória],SúhrnVýdavkov[Výdavky])","v":{"v":201,"d":"201.00"}},{"$f":"SUM(SúhrnVýdavkov[[#This Row],[Jan]:[Dec]])","v":{"v":1263,"d":"1,263.00"}}]
["Výdavok 2",{"$f":"SUMIFS(VýdJan[Suma],VýdJan[Kategória],SúhrnVýdavkov[Výdavky])","v":{"v":238,"d":"238.00"}},{"$f":"SUMIFS(VýdFeb[Suma],VýdFeb[Kategória],SúhrnVýdavkov[Výdavky])","v":{"v":238,"d":"238.00"}},{"$f":"SUMIFS(VýdMar[Suma],VýdMar[Kategória],SúhrnVýdavkov[Výdavky])","v":{"v":238,"d":"238.00"}},{"$f":"SUMIFS(VýdApr[Suma],VýdApr[Kategória],SúhrnVýdavkov[Výdavky])","v":{"v":123,"d":"123.00"}},{"$f":"SUMIFS(VýdMáj[Suma],VýdMáj[Kategória],SúhrnVýdavkov[Výdavky])","v":{"v":111,"d":"111.00"}},{"$f":"SUMIFS(VýdJún[Suma],VýdJún[Kategória],SúhrnVýdavkov[Výdavky])","v":{"v":98,"d":"98.00"}},{"$f":"SUMIFS(VýdJúl[Suma],VýdJúl[Kategória],SúhrnVýdavkov[Výdavky])","v":{"v":0,"d":"0.00"}},{"$f":"SUMIFS(VýdAug[Suma],VýdAug[Kategória],SúhrnVýdavkov[Výdavky])","v":{"v":0,"d":"0.00"}},{"$f":"SUMIFS(VýdSep[Suma],VýdSep[Kategória],SúhrnVýdavkov[Výdavky])","v":{"v":0,"d":"0.00"}},{"$f":"SUMIFS(VýdOkt[Suma],VýdOkt[Kategória],SúhrnVýdavkov[Výdavky])","v":{"v":0,"d":"0.00"}},{"$f":"SUMIFS(VýdNov[Suma],VýdNov[Kategória],SúhrnVýdavkov[Výdavky])","v":{"v":0,"d":"0.00"}},{"$f":"SUMIFS(VýdDec[Suma],VýdDec[Kategória],SúhrnVýdavkov[Výdavky])","v":{"v":440,"d":"440.00"}},{"$f":"SUM(SúhrnVýdavkov[[#This Row],[Jan]:[Dec]])","v":{"v":1486,"d":"1,486.00"}}]
["Výdavok 3",{"$f":"SUMIFS(VýdJan[Suma],VýdJan[Kategória],SúhrnVýdavkov[Výdavky])","v":{"v":110,"d":"110.00"}},{"$f":"SUMIFS(VýdFeb[Suma],VýdFeb[Kategória],SúhrnVýdavkov[Výdavky])","v":{"v":110,"d":"110.00"}},{"$f":"SUMIFS(VýdMar[Suma],VýdMar[Kategória],SúhrnVýdavkov[Výdavky])","v":{"v":110,"d":"110.00"}},{"$f":"SUMIFS(VýdApr[Suma],VýdApr[Kategória],SúhrnVýdavkov[Výdavky])","v":{"v":125,"d":"125.00"}},{"$f":"SUMIFS(VýdMáj[Suma],VýdMáj[Kategória],SúhrnVýdavkov[Výdavky])","v":{"v":333,"d":"333.00"}},{"$f":"SUMIFS(VýdJún[Suma],VýdJún[Kategória],SúhrnVýdavkov[Výdavky])","v":{"v":122,"d":"122.00"}},{"$f":"SUMIFS(VýdJúl[Suma],VýdJúl[Kategória],SúhrnVýdavkov[Výdavky])","v":{"v":0,"d":"0.00"}},{"$f":"SUMIFS(VýdAug[Suma],VýdAug[Kategória],SúhrnVýdavkov[Výdavky])","v":{"v":0,"d":"0.00"}},{"$f":"SUMIFS(VýdSep[Suma],VýdSep[Kategória],SúhrnVýdavkov[Výdavky])","v":{"v":0,"d":"0.00"}},{"$f":"SUMIFS(VýdOkt[Suma],VýdOkt[Kategória],SúhrnVýdavkov[Výdavky])","v":{"v":0,"d":"0.00"}},{"$f":"SUMIFS(VýdNov[Suma],VýdNov[Kategória],SúhrnVýdavkov[Výdavky])","v":{"v":0,"d":"0.00"}},{"$f":"SUMIFS(VýdDec[Suma],VýdDec[Kategória],SúhrnVýdavkov[Výdavky])","v":{"v":122,"d":"122.00"}},{"$f":"SUM(SúhrnVýdavkov[[#This Row],[Jan]:[Dec]])","v":{"v":1032,"d":"1,032.00"}}]
["Výdavok 4",{"$f":"SUMIFS(VýdJan[Suma],VýdJan[Kategória],SúhrnVýdavkov[Výdavky])","v":{"v":426,"d":"426.00"}},{"$f":"SUMIFS(VýdFeb[Suma],VýdFeb[Kategória],SúhrnVýdavkov[Výdavky])","v":{"v":84,"d":"84.00"}},{"$f":"SUMIFS(VýdMar[Suma],VýdMar[Kategória],SúhrnVýdavkov[Výdavky])","v":{"v":84,"d":"84.00"}},{"$f":"SUMIFS(VýdApr[Suma],VýdApr[Kategória],SúhrnVýdavkov[Výdavky])","v":{"v":426,"d":"426.00"}},{"$f":"SUMIFS(VýdMáj[Suma],VýdMáj[Kategória],SúhrnVýdavkov[Výdavky])","v":{"v":125,"d":"125.00"}},{"$f":"SUMIFS(VýdJún[Suma],VýdJún[Kategória],SúhrnVýdavkov[Výdavky])","v":{"v":187,"d":"187.00"}},{"$f":"SUMIFS(VýdJúl[Suma],VýdJúl[Kategória],SúhrnVýdavkov[Výdavky])","v":{"v":0,"d":"0.00"}},{"$f":"SUMIFS(VýdAug[Suma],VýdAug[Kategória],SúhrnVýdavkov[Výdavky])","v":{"v":0,"d":"0.00"}},{"$f":"SUMIFS(VýdSep[Suma],VýdSep[Kategória],SúhrnVýdavkov[Výdavky])","v":{"v":0,"d":"0.00"}},{"$f":"SUMIFS(VýdOkt[Suma],VýdOkt[Kategória],SúhrnVýdavkov[Výdavky])","v":{"v":0,"d":"0.00"}},{"$f":"SUMIFS(VýdNov[Suma],VýdNov[Kategória],SúhrnVýdavkov[Výdavky])","v":{"v":0,"d":"0.00"}},{"$f":"SUMIFS(VýdDec[Suma],VýdDec[Kategória],SúhrnVýdavkov[Výdavky])","v":{"v":187,"d":"187.00"}},{"$f":"SUM(SúhrnVýdavkov[[#This Row],[Jan]:[Dec]])","v":{"v":1519,"d":"1,519.00"}}]
["Výdavok 5",{"$f":"SUMIFS(VýdJan[Suma],VýdJan[Kategória],SúhrnVýdavkov[Výdavky])","v":{"v":54,"d":"54.00"}},{"$f":"SUMIFS(VýdFeb[Suma],VýdFeb[Kategória],SúhrnVýdavkov[Výdavky])","v":{"v":54,"d":"54.00"}},{"$f":"SUMIFS(VýdMar[Suma],VýdMar[Kategória],SúhrnVýdavkov[Výdavky])","v":{"v":109,"d":"109.00"}},{"$f":"SUMIFS(VýdApr[Suma],VýdApr[Kategória],SúhrnVýdavkov[Výdavky])","v":{"v":98,"d":"98.00"}},{"$f":"SUMIFS(VýdMáj[Suma],VýdMáj[Kategória],SúhrnVýdavkov[Výdavky])","v":{"v":33,"d":"33.00"}},{"$f":"SUMIFS(VýdJún[Suma],VýdJún[Kategória],SúhrnVýdavkov[Výdavky])","v":{"v":441,"d":"441.00"}},{"$f":"SUMIFS(VýdJúl[Suma],VýdJúl[Kategória],SúhrnVýdavkov[Výdavky])","v":{"v":0,"d":"0.00"}},{"$f":"SUMIFS(VýdAug[Suma],VýdAug[Kategória],SúhrnVýdavkov[Výdavky])","v":{"v":0,"d":"0.00"}},{"$f":"SUMIFS(VýdSep[Suma],VýdSep[Kategória],SúhrnVýdavkov[Výdavky])","v":{"v":0,"d":"0.00"}},{"$f":"SUMIFS(VýdOkt[Suma],VýdOkt[Kategória],SúhrnVýdavkov[Výdavky])","v":{"v":0,"d":"0.00"}},{"$f":"SUMIFS(VýdNov[Suma],VýdNov[Kategória],SúhrnVýdavkov[Výdavky])","v":{"v":0,"d":"0.00"}},{"$f":"SUMIFS(VýdDec[Suma],VýdDec[Kategória],SúhrnVýdavkov[Výdavky])","v":{"v":99,"d":"99.00"}},{"$f":"SUM(SúhrnVýdavkov[[#This Row],[Jan]:[Dec]])","v":{"v":888,"d":"888.00"}}]
["Celková \nhodnota",{"$f":"SUBTOTAL(109,SúhrnVýdavkov[Jan])","v":{"v":861,"d":"861.00"}},{"$f":"SUBTOTAL(109,SúhrnVýdavkov[Feb])","v":{"v":861,"d":"861.00"}},{"$f":"SUBTOTAL(109,SúhrnVýdavkov[Mar])","v":{"v":574,"d":"574.00"}},{"$f":"SUBTOTAL(109,SúhrnVýdavkov[Apr])","v":{"v":817,"d":"817.00"}},{"$f":"SUBTOTAL(109,SúhrnVýdavkov[Máj])","v":{"v":977,"d":"977.00"}},{"$f":"SUBTOTAL(109,SúhrnVýdavkov[Jún])","v":{"v":1049,"d":"1,049.00"}},{"$f":"SUBTOTAL(109,SúhrnVýdavkov[Júl])","v":{"v":0,"d":"0.00"}},{"$f":"SUBTOTAL(109,SúhrnVýdavkov[Aug])","v":{"v":0,"d":"0.00"}},{"$f":"SUBTOTAL(109,SúhrnVýdavkov[Sep])","v":{"v":0,"d":"0.00"}},{"$f":"SUBTOTAL(109,SúhrnVýdavkov[Okt])","v":{"v":0,"d":"0.00"}},{"$f":"SUBTOTAL(109,SúhrnVýdavkov[Nov])","v":{"v":0,"d":"0.00"}},{"$f":"SUBTOTAL(109,SúhrnVýdavkov[Dec])","v":{"v":1049,"d":"1,049.00"}},{"$f":"SUBTOTAL(109,SúhrnVýdavkov[Celková \nhodnota])","v":{"v":6188,"d":"6,188.00"}}]

{"sheet":"jan","index":2,"n_rows":9,"n_cols":5,"rows_kept":9,"merged":[[0,0,0,2]]}
["VÝDAVKY ZA JANUÁR",null,null,"Súhrn","Tipy"]
["Dátum","Č. OBJEDNÁVKY","Suma","Kategória","Popis"]
[{"$f":"DATE(YEAR(TODAY()),1,4)","v":"2017-01-04"},"A-12345",{"v":33,"d":"33.00"},"Výdavok 1","Zásoby"]
[{"$f":"DATE(YEAR(TODAY()),1,5)","v":"2017-01-05"},"A-12346",{"v":238,"d":"238.00"},"Výdavok 2"]
[null,null,{"v":342,"d":"342.00"},"Výdavok 4"]
[null,null,{"v":110,"d":"110.00"},"Výdavok 3"]
[null,null,{"v":84,"d":"84.00"},"Výdavok 4"]
[null,null,{"v":54,"d":"54.00"},"Výdavok 5"]
["Celková hodnota",null,{"$f":"SUBTOTAL(109,VýdJan[Suma])","v":{"v":861,"d":"861.00"}}]

{"sheet":"feb","index":3,"n_rows":9,"n_cols":5,"rows_kept":9,"merged":[[0,0,0,2]]}
["VÝDAVKY ZA FEBRUÁR",null,null,"Súhrn","Tipy"]
["Dátum","Č. OBJEDNÁVKY","Suma","Kategória","Popis"]
[{"$f":"DATE(YEAR(TODAY()),2,3)","v":"2017-02-03"},"A-12345",{"v":33,"d":"33.00"},"Výdavok 1","Zásoby"]
[{"$f":"DATE(YEAR(TODAY()),2,4)","v":"2017-02-04"},"A-12346",{"v":238,"d":"238.00"},"Výdavok 2"]
[null,null,{"v":342,"d":"342.00"},"Výdavok 1"]
[null,null,{"v":110,"d":"110.00"},"Výdavok 3"]
[null,null,{"v":84,"d":"84.00"},"Výdavok 4"]
[null,null,{"v":54,"d":"54.00"},"Výdavok 5"]
["Celková hodnota",null,{"$f":"SUBTOTAL(109,VýdFeb[Suma])","v":{"v":861,"d":"861.00"}}]

{"sheet":"mar","index":4,"n_rows":9,"n_cols":5,"rows_kept":9,"merged":[[0,0,0,2]]}
["VÝDAVKY ZA MAREC",null,null,"Súhrn","Tipy"]
["Dátum","Č. OBJEDNÁVKY","Suma","Kategória","Popis"]
[{"$f":"DATE(YEAR(TODAY()),3,5)","v":"2017-03-05"},"A-12345",{"v":33,"d":"33.00"},"Výdavok 1","Zásoby"]
[{"$f":"DATE(YEAR(TODAY()),3,6)","v":"2017-03-06"},"A-12346",{"v":238,"d":"238.00"},"Výdavok 2"]
[null,null,{"v":55,"d":"55.00"},"Výdavok 5"]
[null,null,{"v":110,"d":"110.00"},"Výdavok 3"]
[null,null,{"v":84,"d":"84.00"},"Výdavok 4"]
[null,null,{"v":54,"d":"54.00"},"Výdavok 5"]
["Celková hodnota",null,{"$f":"SUBTOTAL(109,VýdMar[Suma])","v":{"v":574,"d":"574.00"}}]

{"sheet":"apr","index":5,"n_rows":9,"n_cols":5,"rows_kept":9,"merged":[[0,0,0,2]]}
["VÝDAVKY ZA APRÍL",null,null,"Súhrn","Tipy"]
["Dátum","Č. OBJEDNÁVKY","Suma","Kategória","Popis"]
[{"$f":"DATE(YEAR(TODAY()),4,4)","v":"2017-04-04"},"A-12345",{"v":45,"d":"45.00"},"Výdavok 1","Zásoby"]
[{"$f":"DATE(YEAR(TODAY()),4,8)","v":"2017-04-08"},"A-12346",{"v":123,"d":"123.00"},"Výdavok 2"]
[null,null,{"v":342,"d":"342.00"},"Výdavok 4"]
[null,null,{"v":125,"d":"125.00"},"Výdavok 3"]
[null,null,{"v":84,"d":"84.00"},"Výdavok 4"]
[null,null,{"v":98,"d":"98.00"},"Výdavok 5"]
["Celková hodnota",null,{"$f":"SUBTOTAL(109,VýdApr[Suma])","v":{"v":817,"d":"817.00"}}]

{"sheet":"máj","index":6,"n_rows":9,"n_cols":5,"rows_kept":9,"merged":[[0,0,0,2]]}
["VÝDAVKY ZA MÁJ",null,null,"Súhrn","Tipy"]
["Dátum","Č. OBJEDNÁVKY","Suma","Kategória","Popis"]
[{"$f":"DATE(YEAR(TODAY()),5,3)","v":"2017-05-03"},"A-12345",{"v":33,"d":"33.00"},"Výdavok 1","Zásoby"]
[{"$f":"DATE(YEAR(TODAY()),5,8)","v":"2017-05-08"},"A-12346",{"v":111,"d":"111.00"},"Výdavok 2"]
[null,null,{"v":342,"d":"342.00"},"Výdavok 1"]
[null,null,{"v":333,"d":"333.00"},"Výdavok 3"]
[null,null,{"v":125,"d":"125.00"},"Výdavok 4"]
[null,null,{"v":33,"d":"33.00"},"Výdavok 5"]
["Celková hodnota",null,{"$f":"SUBTOTAL(109,VýdMáj[Suma])","v":{"v":977,"d":"977.00"}}]

{"sheet":"jún","index":7,"n_rows":9,"n_cols":5,"rows_kept":9,"merged":[[0,0,0,2]]}
["VÝDAVKY ZA JÚN",null,null,"Súhrn","Tipy"]
["Dátum","Č. OBJEDNÁVKY","Suma","Kategória","Popis"]
[{"$f":"DATE(YEAR(TODAY()),6,7)","v":"2017-06-07"},"A-12345",{"v":201,"d":"201.00"},"Výdavok 1","Zásoby"]
[{"$f":"DATE(YEAR(TODAY()),6,8)","v":"2017-06-08"},"A-12346",{"v":98,"d":"98.00"},"Výdavok 2"]
[null,null,{"v":342,"d":"342.00"},"Výdavok 5"]
[null,null,{"v":122,"d":"122.00"},"Výdavok 3"]
[null,null,{"v":187,"d":"187.00"},"Výdavok 4"]
[null,null,{"v":99,"d":"99.00"},"Výdavok 5"]
["Celková hodnota",null,{"$f":"SUBTOTAL(109,VýdJún[Suma])","v":{"v":1049,"d":"1,049.00"}}]

{"sheet":"júl","index":8,"n_rows":9,"n_cols":5,"rows_kept":9,"merged":[[0,0,0,2]]}
["VÝDAVKY ZA JÚL",null,null,"Súhrn","Tipy"]
["Dátum","Č. OBJEDNÁVKY","Suma","Kategória","Popis"]
[{"$f":"DATE(YEAR(TODAY()),7,9)","v":"2017-07-09"},"A-12345",null,"Výdavok 1","Zásoby"]
[{"$f":"DATE(YEAR(TODAY()),7,14)","v":"2017-07-14"},"A-12346",null,"Výdavok 2"]
[{"$nulls":3},"Výdavok 2"]
[{"$nulls":3},"Výdavok 3"]
[{"$nulls":3},"Výdavok 4"]
[{"$nulls":3},"Výdavok 5"]
["Celková hodnota",null,{"$f":"SUBTOTAL(109,VýdJúl[Suma])","v":{"v":0,"d":"0.00"}}]

{"sheet":"aug","index":9,"n_rows":9,"n_cols":5,"rows_kept":9,"merged":[[0,0,0,2]]}
["VÝDAVKY ZA AUGUST",null,null,"Súhrn","Tipy"]
["Dátum","Č. OBJEDNÁVKY","Suma","Kategória","Popis"]
[{"$f":"DATE(YEAR(TODAY()),8,8)","v":"2017-08-08"},"A-12345",null,"Výdavok 1","Zásoby"]
[{"$f":"DATE(YEAR(TODAY()),8,9)","v":"2017-08-09"},"A-12346",null,"Výdavok 2"]
[{"$nulls":3},"Výdavok 2"]
[{"$nulls":3},"Výdavok 3"]
[{"$nulls":3},"Výdavok 4"]
[{"$nulls":3},"Výdavok 5"]
["Celková hodnota",null,{"$f":"SUBTOTAL(109,VýdAug[Suma])","v":{"v":0,"d":"0.00"}}]

{"sheet":"sep","index":10,"n_rows":9,"n_cols":5,"rows_kept":9,"merged":[[0,0,0,2]]}
["VÝDAVKY ZA SEPTEMBER",null,null,"Súhrn","Tipy"]
["Dátum","Č. OBJEDNÁVKY","Suma","Kategória","Popis"]
[{"$f":"DATE(YEAR(TODAY()),9,9)","v":"2017-09-09"},"A-12345",null,"Výdavok 1","Zásoby"]
[{"$f":"DATE(YEAR(TODAY()),9,15)","v":"2017-09-15"},"A-12346",null,"Výdavok 2"]
[{"$nulls":3},"Výdavok 2"]
[{"$nulls":3},"Výdavok 3"]
[{"$nulls":3},"Výdavok 4"]
[{"$nulls":3},"Výdavok 5"]
["Celková hodnota",null,{"$f":"SUBTOTAL(109,VýdSep[Suma])","v":{"v":0,"d":"0.00"}}]

{"sheet":"okt","index":11,"n_rows":9,"n_cols":5,"rows_kept":9,"merged":[[0,0,0,2]]}
["VÝDAVKY ZA OKTÓBER",null,null,"Súhrn","Tipy"]
["Dátum","Č. OBJEDNÁVKY","Suma","Kategória","Popis"]
[{"$f":"DATE(YEAR(TODAY()),10,10)","v":"2017-10-10"},"A-12345",null,"Výdavok 1","Zásoby"]
[{"$f":"DATE(YEAR(TODAY()),10,21)","v":"2017-10-21"},"A-12346",null,"Výdavok 2"]
[{"$nulls":3},"Výdavok 2"]
[{"$nulls":3},"Výdavok 3"]
[{"$nulls":3},"Výdavok 4"]
[{"$nulls":3},"Výdavok 5"]
["Celková hodnota",null,{"$f":"SUBTOTAL(109,VýdOkt[Suma])","v":{"v":0,"d":"0.00"}}]

{"sheet":"nov","index":12,"n_rows":9,"n_cols":5,"rows_kept":9,"merged":[[0,0,0,2]]}
["VÝDAVKY ZA NOVEMBER",null,null,"Súhrn","Tipy"]
["Dátum","Č. OBJEDNÁVKY","Suma","Kategória","Popis"]
[{"$f":"DATE(YEAR(TODAY()),11,14)","v":"2017-11-14"},"A-12345",null,"Výdavok 1","Zásoby"]
[{"$f":"DATE(YEAR(TODAY()),11,21)","v":"2017-11-21"},"A-12346",null,"Výdavok 2"]
[{"$nulls":3},"Výdavok 2"]
[{"$nulls":3},"Výdavok 3"]
[{"$nulls":3},"Výdavok 4"]
[{"$nulls":3},"Výdavok 5"]
["Celková hodnota",null,{"$f":"SUBTOTAL(109,VýdNov[Suma])","v":{"v":0,"d":"0.00"}}]

{"sheet":"dec","index":13,"n_rows":9,"n_cols":5,"rows_kept":9,"merged":[[0,0,0,2]]}
["VÝDAVKY ZA DECEMBER",null,null,"Súhrn","Tipy"]
["Dátum","Č. OBJEDNÁVKY","Suma","Kategória","Popis"]
[{"$f":"DATE(YEAR(TODAY()),12,2)","v":"2017-12-02"},"A-12345",{"v":201,"d":"201.00"},"Výdavok 1","Zásoby"]
[{"$f":"DATE(YEAR(TODAY()),12,24)","v":"2017-12-24"},"A-12346",{"v":98,"d":"98.00"},"Výdavok 2"]
[null,null,{"v":342,"d":"342.00"},"Výdavok 2"]
[null,null,{"v":122,"d":"122.00"},"Výdavok 3"]
[null,null,{"v":187,"d":"187.00"},"Výdavok 4"]
[null,null,{"v":99,"d":"99.00"},"Výdavok 5"]
["Celková hodnota",null,{"$f":"SUBTOTAL(109,VýdDec[Suma])","v":{"v":1049,"d":"1,049.00"}}]